fUST/lending_fUST_20241214
["ID","MTS","AMOUNT","RATE_DAILY","PERIOD"]
[345355572,1734179445878,-187.158686,0.00027397,7]
[345355574,1734179445887,-187.158686,0.00027397,7]
[345355576,1734179445896,-273.810847,0.00027397,7]
[345355578,1734179445906,-187.158686,0.00027397,7]
[345355580,1734179445915,-187.158688,0.00027397,7]
[345355582,1734179445925,-151.0,0.00027397,7]
[345355584,1734179445934,-585.02,0.00027397,7]
[345355586,1734179445944,-585.02,0.00027671,7]
[345355588,1734179445954,-585.02,0.00027945,7]
[345355591,1734179445964,-15690.01730859,0.00028,2]
[345355607,1734179446120,-26317.47777202,0.00028,2]
[345355931,1734180082100,10000.0,0.00020222,2]
[345355932,1734180093739,10000.0,0.00020222,2]
[345355970,1734180636072,-699.7275897,0.00022117,2]
[345355971,1734180636086,-4300.2724103,0.00022117,2]
[345355972,1734180636096,-2000.6396497,0.0002234,2]
[345355973,1734180636106,-268.74,0.00023734,2]
[345355974,1734180636116,-231.72545353,0.0002489,2]
[345355975,1734180636127,-300.0,0.00024925,2]
[345355976,1734180636137,-24900.0,0.00024926,2]
[345355977,1734180636146,-4075.89781149,0.0002499,2]
[345355978,1734180636157,-155.0,0.00025,2]
[345355979,1734180636166,-231.72545349,0.0002564,2]
[345355980,1734180636176,-36275.0,0.00026,2]
[345355981,1734180636186,-231.72545349,0.0002639,2]
[345355983,1734180636196,-196.781623,0.00026555,2]
[345355985,1734180636205,-459.987,0.000266,2]
[345355987,1734180636215,-5000.0,0.00027122,7]
[345355990,1734180636225,-231.72545349,0.0002714,2]
[345355992,1734180636235,-152.7,0.000273,31]
[345355993,1734180636244,-152.7,0.000273,31]
[345355994,1734180636254,-152.7,0.000273,31]
[345355995,1734180636268,-152.7,0.000273,31]
[345355996,1734180636278,-152.7,0.000273,31]
[345355997,1734180636287,-152.7,0.000273,31]
[345355998,1734180636297,-500.0,0.00027397,7]
[345355999,1734180636307,-500.0,0.00027397,7]
[345356000,1734180636317,-500.0,0.00027397,7]
[345356001,1734180636327,-449.4496,0.00027397,7]
[345356002,1734180636337,-500.0,0.00027397,7]
[345356003,1734180636347,-500.0,0.00027397,7]
[345356004,1734180636356,-556.64746315,0.00027397,7]
[345356005,1734180636367,-500.0,0.00027397,7]
[345356006,1734180636377,-500.0,0.00027397,7]
[345356007,1734180636387,-500.0,0.00027397,7]
[345356008,1734180636396,-500.0,0.00027397,7]
[345356009,1734180636405,-420.17764389,0.00027397,7]
[345356010,1734180636414,-500.0,0.00027397,7]
[345356011,1734180636424,-500.0,0.00027397,7]
[345356012,1734180636433,-500.0,0.00027397,7]
[345356013,1734180636444,-500.0,0.00027397,7]
[345356014,1734180636453,-515.93465478,0.00027397,7]
[345356015,1734180636463,-168.0,0.00027397,7]
[345356016,1734180636472,-500.0,0.00027397,7]
[345356017,1734180636481,-500.0,0.00027397,7]
[345356018,1734180636491,-500.0,0.00027397,7]
[345356019,1734180636500,-500.0,0.00027397,7]
[345356020,1734180636513,-645.90817511,0.00027397,7]
[345356021,1734180636523,-500.0,0.00027397,7]
[345356022,1734180636532,-500.0,0.00027397,7]
[345356023,1734180636542,-500.0,0.00027397,7]
[345356024,1734180636552,-500.0,0.00027397,7]
[345356025,1734180636561,-500.0,0.00027397,7]
[345356026,1734180636570,-500.0,0.00027397,7]
[345356027,1734180636580,-500.0,0.00027397,7]
[345356028,1734180636590,-500.0,0.00027397,7]
[345356029,1734180636600,-500.0,0.00027397,7]
[345356030,1734180636613,-587.6,0.00027397,7]
[345356031,1734180636623,-500.0,0.00027397,2]
[345356032,1734180636633,-500.0,0.00027397,7]
[345356033,1734180636642,-500.0,0.00027397,7]
[345356034,1734180636652,-500.0,0.00027397,7]
[345356035,1734180636663,-500.0,0.00027397,7]
[345356036,1734180636672,-500.0,0.00027397,7]
[345356037,1734180636682,-500.0,0.00027397,7]
[345356038,1734180636691,-5500.49,0.00027397,7]
[345356039,1734180636701,-500.0,0.00027397,7]
[345356040,1734180636710,-500.0,0.00027397,7]
[345356041,1734180636719,-500.0,0.00027397,7]
[345356042,1734180636729,-500.0,0.00027397,7]
[345356043,1734180636739,-500.0,0.00027397,7]
[345356044,1734180636748,-500.0,0.00027397,7]
[345356045,1734180636757,-500.0,0.00027397,7]
[345356046,1734180636770,-500.0,0.00027397,7]
[345356047,1734180636779,-500.0,0.00027397,7]
[345356048,1734180636789,-500.0,0.00027397,7]
[345356049,1734180636798,-500.0,0.00027397,7]
[345356050,1734180636807,-500.0,0.00027397,7]
[345356051,1734180636817,-500.0,0.00027397,7]
[345356052,1734180636827,-500.0,0.00027397,7]
[345356053,1734180636836,-500.0,0.00027397,7]
[345356054,1734180636846,-500.0,0.00027397,7]
[345356055,1734180636855,-1420.84,0.00027397,7]
[345356056,1734180636864,-361.79382346,0.00027397,7]
[345356057,1734180636874,-1000.0,0.00027397,2]
[345356058,1734180636883,-500.0,0.00027397,7]
[345356059,1734180636892,-500.0,0.00027397,7]
[345356060,1734180636902,-500.0,0.00027397,7]
[345356061,1734180636911,-607.86,0.00027397,5]
[345356062,1734180636924,-500.0,0.00027397,7]
[345356063,1734180636934,-500.0,0.00027397,7]
[345356064,1734180636944,-500.0,0.00027397,7]
[345356065,1734180636953,-500.0,0.00027397,7]
[345356066,1734180636963,-500.0,0.00027397,7]
[345356067,1734180636971,-300.65570424,0.00027397,2]
[345356068,1734180636980,-500.0,0.00027397,7]
[345356069,1734180636990,-1186.45,0.00027397,7]
[345356070,1734180636999,-284.81839079,0.00027397,2]
[345356071,1734180637008,-420.0,0.00027418,2]
[345356072,1734180637021,-196.781623,0.00027538,2]
[345356073,1734180637031,-151.25304067,0.0002761,2]
[345356074,1734180637040,-500.0,0.00027671,7]
[345356075,1734180637050,-168.0,0.00027671,7]
[345356076,1734180637059,-513.46,0.00027671,7]
[345356077,1734180637068,-500.0,0.00027671,7]
[345356078,1734180637077,-500.0,0.00027671,7]
[345356079,1734180637087,-500.0,0.00027671,7]
[345356080,1734180637096,-500.0,0.00027671,7]
[345356081,1734180637105,-500.0,0.00027671,7]
[345356082,1734180637115,-500.0,0.00027671,7]
[345356083,1734180637124,-500.0,0.00027671,7]
[345356084,1734180637133,-500.0,0.00027671,7]
[345356085,1734180637142,-587.6,0.00027671,7]
[345356086,1734180637153,-500.0,0.00027671,7]
[345356087,1734180637163,-500.0,0.00027671,7]
[345356088,1734180637173,-500.0,0.00027671,7]
[345356089,1734180637183,-500.0,0.00027671,7]
[345356090,1734180637193,-500.0,0.00027671,7]
[345356091,1734180637202,-500.0,0.00027671,7]
[345356092,1734180637211,-574.49914945,0.00027671,7]
[345356093,1734180637221,-5500.49,0.00027671,7]
[345356094,1734180637230,-500.0,0.00027671,7]
[345356095,1734180637239,-500.0,0.00027671,7]
[345356096,1734180637248,-500.0,0.00027671,7]
[345356097,1734180637257,-500.0,0.00027671,7]
[345356098,1734180637271,-500.0,0.00027671,7]
[345356099,1734180637280,-500.0,0.00027671,7]
[345356100,1734180637289,-500.0,0.00027671,7]
[345356101,1734180637298,-500.0,0.00027671,7]
[345356102,1734180637307,-500.0,0.00027671,7]
[345356103,1734180637316,-500.0,0.00027671,7]
[345356104,1734180637325,-500.0,0.00027671,7]
[345356105,1734180637335,-500.0,0.00027671,7]
[345356106,1734180637344,-500.0,0.00027671,7]
[345356107,1734180637353,-500.0,0.00027671,7]
[345356108,1734180637363,-500.0,0.00027671,7]
[345356109,1734180637372,-1420.84,0.00027671,7]
[345356110,1734180637381,-1000.0,0.00027671,2]
[345356111,1734180637391,-500.0,0.00027671,7]
[345356112,1734180637400,-500.0,0.00027671,7]
[345356113,1734180637409,-500.0,0.00027671,7]
[345356114,1734180637419,-607.86,0.00027671,5]
[345356115,1734180637428,-500.0,0.00027671,7]
[345356116,1734180637439,-299.33471035,0.00027671,7]
[345356117,1734180637450,-500.0,0.00027671,7]
[345356118,1734180637460,-360.26272381,0.00027671,7]
[345356119,1734180637469,-543.89304913,0.00027671,7]
[345356120,1734180637478,-1186.45,0.00027671,7]
[345356121,1734180637487,-225.10135,0.00027671,2]
[345356122,1734180637496,-205.54188747,0.00027845,2]
[345356123,1734180637505,-231.72545349,0.00027891,2]
[345356124,1734180637519,-1367.19,0.000279,2]
[345356125,1734180637528,-205.54188743,0.00027931,2]
[345356126,1734180637537,-500.0,0.00027945,7]
[345356127,1734180637546,-168.0,0.00027945,7]
[345356128,1734180637558,-500.0,0.00027945,7]
[345356129,1734180637567,-587.6,0.00027945,7]
[345356131,1734180637576,-500.0,0.00027945,7]
[345356133,1734180637586,-192.89,0.00027945,7]
[345356135,1734180637595,-5500.49,0.00027945,7]
[345356137,1734180637606,-579.36120566,0.00027945,7]
[345356139,1734180637617,-500.0,0.00027945,7]
[345356140,1734180637627,-500.0,0.00027945,7]
[345356141,1734180637637,-170.12,0.00027945,7]
[345356142,1734180637646,-1420.84,0.00027945,7]
[345356143,1734180637656,-500.0,0.00027945,7]
[345356144,1734180637665,-607.86,0.00027945,5]
[345356145,1734180637675,-1186.45,0.00027945,7]
[345356146,1734180637686,-209.6865278,0.00027999,2]
[345356148,1734180637695,-153.52268202,0.00027999,2]
[345356150,1734180637705,-500.0,0.00027999,2]
[345356152,1734180637714,-222.18259932,0.00027999,2]
[345356154,1734180637723,-164.83769443,0.00027999,2]
[345356156,1734180637732,-152.7,0.00028,31]
[345356158,1734180637741,-152.7,0.00028,31]
[345356160,1734180637751,-152.7,0.00028,31]
[345356162,1734180637763,-152.7,0.00028,31]
[345356164,1734180637774,-152.7,0.00028,31]
[345356166,1734180637784,-152.7,0.00028,31]
[345356168,1734180637793,-152.7,0.00028,31]
[345356170,1734180637802,-152.7,0.00028,31]
[345356172,1734180637811,-152.7,0.00028,31]
[345356174,1734180637820,-152.7,0.00028,31]
[345356176,1734180637829,-152.7,0.00028,31]
[345356178,1734180637838,-152.7,0.00028,31]
[345356180,1734180637848,-236602.53354477,0.00028,2]
[345356183,1734180637863,-7760.00000001,0.00028,2]
[345356222,1734180638221,-7089.6,0.00028,2]
[345356448,1734180640229,-40727.96127571,0.00028,2]
[345356449,1734180640286,-100731.15087207,0.00028,2]
[345356729,1734180643113,-8258.26845177,0.00028,2]
[345356730,1734180643125,-114859.48585567,0.00028,2]
[345356731,1734180643135,-500.0,0.00028,120]
[345356732,1734180643144,-205.54188743,0.00028018,2]
[345356733,1734180643153,-376.34387694,0.0002809,2]
[345356734,1734180643163,-205.54188743,0.00028104,2]
[345356735,1734180643172,-912.97,0.00028123,2]
[345356737,1734180643182,-205.54188743,0.0002819,2]
[345356739,1734180643191,-151.0,0.000282,13]
[345356741,1734180643200,-1272.03232914,0.000282,2]
[345356743,1734180643209,-500.0,0.00028219,7]
[345356744,1734180643218,-168.0,0.00028219,7]
[345356746,1734180643227,-500.0,0.00028219,7]
[345356748,1734180643236,-587.6,0.00028219,7]
[345356749,1734180643245,-5500.49,0.00028219,7]
[345356751,1734180643255,-500.0,0.00028219,7]
[345356753,1734180643265,-1420.84,0.00028219,7]
[345356754,1734180643276,-500.0,0.00028219,7]
[345356755,1734180643285,-607.86,0.00028219,5]
[345356756,1734180643295,-1186.45,0.00028219,7]
[345356757,1734180643304,-95467.220577,0.0002829,2]
[345356758,1734180643313,-151.0,0.0002829,7]
[345356768,1734180643322,-171.712075,0.0002829,7]
[345356771,1734180643436,-171.712075,0.0002829,7]
[345356772,1734180643446,-151.0,0.0002829,7]
[345356774,1734180643455,-151.0,0.0002829,7]
[345356775,1734180643464,-270.698814,0.0002829,7]
[345356776,1734180643473,-270.698814,0.0002829,7]
[345356777,1734180643483,-1360.860917,0.0002829,7]
[345356778,1734180643492,-1360.860917,0.0002829,7]
[345356779,1734180643501,-151.0,0.0002829,7]
[345356780,1734180643511,-383.882526,0.0002829,7]
[345356781,1734180643524,-383.882526,0.0002829,7]
[345356782,1734180643533,-151.0,0.0002829,7]
[345356783,1734180643542,-151.0,0.0002829,7]
[345356784,1734180643551,-151.0,0.0002829,7]
[345356785,1734180643560,-151.0,0.0002829,7]
[345356786,1734180643570,-334.402808,0.0002829,7]
[345356787,1734180643579,-334.402808,0.0002829,7]
[345356788,1734180643589,-151.0,0.0002829,7]
[345356789,1734180643599,-151.0,0.0002829,7]
[345356790,1734180643612,-171.692544,0.0002829,7]
[345356791,1734180643621,-171.692544,0.0002829,7]
[345356792,1734180643631,-151.0,0.0002829,7]
[345356793,1734180643640,-151.0,0.0002829,7]
[345356794,1734180643651,-376.34387689,0.00028318,2]
[345356795,1734180643660,-232.11,0.000284,7]
[345356796,1734180643669,-151.0,0.000284,13]
[345356797,1734180643679,-151.0,0.000284,15]
[345356798,1734180643690,-151.0,0.000284,16]
[345356799,1734180643700,-294.41,0.000284,7]
[345356800,1734180643709,-220.81124022,0.000284,7]
[345356801,1734180643719,-220.81,0.000284,7]
[345356802,1734180643728,-176.597164,0.0002841,2]
[345356803,1734180643737,-500.0,0.00028493,7]
[345356804,1734180643747,-168.0,0.00028493,7]
[345356805,1734180643757,-500.0,0.00028493,7]
[345356806,1734180643769,-587.6,0.00028493,7]
[345356807,1734180643778,-5500.49,0.00028493,7]
[345356808,1734180643787,-500.0,0.00028493,7]
[345356809,1734180643797,-1420.84,0.00028493,7]
[345356810,1734180643807,-500.0,0.00028493,7]
[345356811,1734180643816,-607.86,0.00028493,5]
[345356812,1734180643825,-1186.45,0.00028493,7]
[345356813,1734180643835,-12384.52646156,0.000285,2]
[345356814,1734180643844,-234.83910534,0.000285,2]
[345356815,1734180643854,-548609.45701595,0.000285,5]
[345356816,1734180643866,-27705.19623466,0.000285,5]
[345356817,1734180643877,-1081.75,0.000285,5]
[345356865,1734180965406,1202.0,0.000255,120]
[345356868,1734181261885,270.224867,0.00013973,2]
[345356915,1734181836005,-4911.37554478,0.00023969,2]
[345356916,1734181836015,-251.62,0.00026583,3]
[345356917,1734181836025,-196.781623,0.00026591,2]
[345356918,1734181836034,-182.314,0.00026786,2]
[345356919,1734181836043,-312.55404834,0.00027034,2]
[345356920,1734181836052,-440.576,0.0002707,2]
[345356921,1734181836062,-300.0,0.00027299,2]
[345356922,1734181836072,-152.84,0.000273,31]
[345356924,1734181836081,-152.84,0.000273,31]
[345356926,1734181836091,-152.84,0.000273,31]
[345356928,1734181836099,-152.84,0.000273,31]
[345356930,1734181836110,-152.84,0.000273,31]
[345356932,1734181836119,-152.84,0.000273,31]
[345356934,1734181836129,-152.84,0.000273,31]
[345356937,1734181836138,-152.84,0.000273,31]
[345356939,1734181836147,-152.84,0.000273,31]
[345356941,1734181836166,-152.84,0.000273,31]
[345356944,1734181836175,-337.6240308,0.00027387,2]
[345356947,1734181836184,-500.0,0.00027397,2]
[345356949,1734181836194,-500.0,0.00027397,7]
[345356951,1734181836204,-500.0,0.00027397,7]
[345356953,1734181836213,-622.42657184,0.00027397,2]
[345356955,1734181836222,-512.64808758,0.0002767,7]
[345356957,1734181836232,-1038.14,0.0002767,7]
[345356959,1734181836241,-667.18,0.0002767,7]
[345356961,1734181836250,-500.0,0.0002767,7]
[345356963,1734181836259,-1529.07,0.0002767,7]
[345356965,1734181836268,-500.0,0.00027671,2]
[345356967,1734181836278,-500.0,0.00027671,7]
[345356969,1734181836287,-284.62844124,0.00027845,2]
[345356971,1734181836296,-1351.22,0.000279,2]
[345356973,1734181836306,-537.38,0.00027943,7]
[345356975,1734181836315,-500.0,0.00027943,7]
[345356977,1734181836324,-500.0,0.00027944,7]
[345356979,1734181836333,-484.58275556,0.00027944,7]
[345356981,1734181836343,-168.0,0.00027944,7]
[345356983,1734181836352,-1000.0,0.00027944,2]
[345356985,1734181836360,-500.0,0.00027944,7]
[345356987,1734181836370,-500.0,0.00027944,7]
[345356989,1734181836379,-500.0,0.00027944,7]
[345356991,1734181836393,-500.0,0.00027944,7]
[345356993,1734181836407,-587.43,0.00027944,5]
[345356995,1734181836418,-1038.14,0.00027944,7]
[345356997,1734181836427,-500.0,0.00027944,7]
[345356999,1734181836436,-667.18,0.00027944,7]
[345357012,1734181836564,-500.0,0.00027944,7]
[345357014,1734181836574,-1000.0,0.00027944,2]
[345357016,1734181836584,-1529.07,0.00027944,7]
[345357018,1734181836593,-500.0,0.00027945,2]
[345357020,1734181836602,-500.0,0.00027945,7]
[345357022,1734181836611,-500.0,0.00027999,7]
[345357024,1734181836621,-167.274,0.00028,18]
[345357026,1734181836630,-152.84,0.00028,31]
[345357028,1734181836639,-152.84,0.00028,31]
[345357030,1734181836651,-152.84,0.00028,31]
[345357032,1734181836660,-152.84,0.00028,31]
[345357034,1734181836669,-152.84,0.00028,31]
[345357036,1734181836678,-152.84,0.00028,31]
[345357038,1734181836687,-152.84,0.00028,31]
[345357040,1734181836697,-152.84,0.00028,31]
[345357042,1734181836706,-152.84,0.00028,31]
[345357044,1734181836715,-152.84,0.00028,31]
[345357046,1734181836724,-152.84,0.00028,31]
[345357048,1734181836733,-152.84,0.00028,31]
[345357050,1734181836743,-152.84,0.00028,31]
[345357052,1734181836752,-152.84,0.00028,31]
[345357054,1734181836762,-152.84,0.00028,31]
[345357055,1734181836772,-152.84,0.00028,31]
[345357056,1734181836782,-152.84,0.00028,31]
[345357057,1734181836791,-152.84,0.00028,31]
[345357058,1734181836800,-152.84,0.00028,31]
[345357059,1734181836809,-152.84,0.00028,31]
[345357060,1734181836819,-300.0,0.00028,13]
[345357061,1734181836828,-114860.0,0.00028,2]
[345357062,1734181836837,-249.999999,0.00028,2]
[345357063,1734181836847,-318.0080823,0.000281,2]
[345357064,1734181836856,-318.00808228,0.000281,2]
[345357065,1734181836864,-318.00808228,0.000281,2]
[345357066,1734181836874,-318.00808228,0.000281,2]
[345357067,1734181836883,-225.312,0.00028173,2]
[345357068,1734181836892,-912.97,0.00028173,2]
[345357069,1734181836905,-284.62844122,0.00028174,2]
[345357070,1734181836918,-537.38,0.00028217,7]
[345357071,1734181836928,-500.0,0.00028217,7]
[345357072,1734181836937,-168.0,0.00028218,7]
[345357073,1734181836947,-1013.79916913,0.00028218,2]
[345357074,1734181836956,-500.0,0.00028218,7]
[345357075,1734181836965,-500.0,0.00028218,7]
[345357076,1734181836974,-587.43,0.00028218,5]
[345357077,1734181836984,-1038.14,0.00028218,7]
[345357078,1734181836993,-667.18,0.00028218,7]
[345357079,1734181837003,-500.0,0.00028218,7]
[345357080,1734181837012,-1000.0,0.00028218,2]
[345357081,1734181837022,-1529.07,0.00028218,7]
[345357082,1734181837031,-500.0,0.00028219,2]
[345357083,1734181837041,-500.0,0.00028219,7]
[345357084,1734181837050,-151.0,0.000283,11]
[345357085,1734181837059,-151.0,0.000283,18]
[345357086,1734181837069,-260.28698831,0.000283,2]
[345357087,1734181837078,-260.28698827,0.00028325,2]
[345357088,1734181837088,-260.28698827,0.0002835,2]
[345357089,1734181837098,-260.28698827,0.00028375,2]
[345357090,1734181837108,-24542.0,0.000284,2]
[345357091,1734181837118,-151.0,0.000284,19]
[345357092,1734181837127,-151.0,0.000284,17]
[345357093,1734181837136,-376.34387694,0.000284,2]
[345357094,1734181837146,-260.28698827,0.000284,2]
[345357095,1734181837155,-294.41,0.000284,7]
[345357096,1734181837164,-220.81124022,0.000284,7]
[345357097,1734181837174,-220.81,0.000284,7]
[345357098,1734181837183,-232.11,0.000284,7]
[345357099,1734181837193,-209.0,0.0002849,24]
[345357100,1734181837202,-537.38,0.00028491,7]
[345357101,1734181837212,-500.0,0.00028491,7]
[345357102,1734181837222,-168.0,0.00028492,7]
[345357103,1734181837234,-500.0,0.00028492,7]
[345357104,1734181837244,-500.0,0.00028492,7]
[345357105,1734181837254,-587.43,0.00028492,5]
[345357106,1734181837263,-1038.14,0.00028492,7]
[345357107,1734181837272,-667.18,0.00028492,7]
[345357108,1734181837282,-500.0,0.00028492,7]
[345357109,1734181837291,-1000.0,0.00028492,2]
[345357110,1734181837301,-1529.07,0.00028492,7]
[345357111,1734181837310,-500.0,0.00028493,7]
[345357112,1734181837319,-565.97671733,0.00028499,2]
[345357113,1734181837329,-52749.68629522,0.000285,2]
[345357114,1734181837338,-587.09776336,0.000285,2]
[345357115,1734181837348,-3017795.11475051,0.000285,5]
[345357116,1734181837358,-714.0,0.000285,30]
[345357117,1734181837367,-3139.56,0.000285,30]
[345357118,1734181837377,-1689474.45811503,0.000285,2]
[345357119,1734181837387,-151.0,0.000285,7]
[345357120,1734181837403,-151.0,0.000285,15]
[345357121,1734181837417,-151.0,0.000285,15]
[345357122,1734181837427,-13283.83,0.000285,2]
[345357123,1734181837436,-318.09617404,0.000285,10]
[345357124,1734181837446,-1000.0,0.000285,2]
[345357125,1734181837455,-284.62844122,0.00028502,2]
[345357126,1734181837464,-176.597164,0.00028503,2]
[345357127,1734181837473,-196.781623,0.00028559,2]
[345357128,1734181837483,-376.34387689,0.00028594,2]
[345357129,1734181837492,-1724.756726,0.00028595,2]
[345357130,1734181837501,-151.0,0.00028674,6]
[345357131,1734181837511,-152.84,0.000287,31]
[345357132,1734181837521,-152.84,0.000287,31]
[345357133,1734181837531,-152.84,0.000287,31]
[345357134,1734181837540,-152.84,0.000287,31]
[345357135,1734181837550,-152.84,0.000287,31]
[345357136,1734181837560,-152.84,0.000287,31]
[345357137,1734181837570,-152.84,0.000287,31]
[345357138,1734181837579,-152.84,0.000287,31]
[345357139,1734181837588,-152.84,0.000287,31]
[345357140,1734181837598,-152.84,0.000287,31]
[345357141,1734181837608,-152.84,0.000287,31]
[345357142,1734181837617,-152.84,0.000287,31]
[345357143,1734181837627,-152.84,0.000287,31]
[345357144,1734181837637,-152.84,0.000287,31]
[345357145,1734181837648,-152.84,0.000287,31]
[345357146,1734181837658,-152.84,0.000287,31]
[345357147,1734181837670,-152.84,0.000287,31]
[345357148,1734181837684,-152.84,0.000287,31]
[345357149,1734181837693,-152.84,0.000287,31]
[345357150,1734181837702,-152.84,0.000287,31]
[345357151,1734181837712,-537.38,0.00028765,7]
[345357152,1734181837721,-412.76593094,0.00028765,7]
[345357153,1734181837730,-168.0,0.00028766,7]
[345357154,1734181837739,-500.0,0.00028766,7]
[345357155,1734181837749,-500.0,0.00028766,7]
[345357156,1734181837758,-587.43,0.00028766,5]
[345357157,1734181837767,-1038.14,0.00028766,7]
[345357158,1734181837777,-667.18,0.00028766,7]
[345357159,1734181837786,-1000.0,0.00028766,2]
[345357160,1734181837796,-1529.07,0.00028766,7]
[345357161,1734181837805,-5500.49,0.00028767,7]
[345357162,1734181837814,-502.25570404,0.00028767,7]
[345357163,1734181837824,-153.07904821,0.00028767,7]
[345357164,1734181837833,-151.89607026,0.00028767,7]
[345357165,1734181837842,-152.26938504,0.00028767,7]
[345357166,1734181837851,-376.34387689,0.00028788,2]
[345357167,1734181837861,-389.10219344,0.000288,2]
[345357168,1734181837870,-3211.891,0.000288,2]
[345357169,1734181837879,-500.0,0.000288,2]
[345357170,1734181837888,-284.62844122,0.00028831,2]
[345357171,1734181837900,-151.0,0.0002894,7]
[345357172,1734181837909,-153.0,0.00028967,2]
[345357173,1734181837919,-153.0,0.00028967,2]
[345357174,1734181837927,-153.0,0.00028967,2]
[345357175,1734181837936,-153.0,0.00028967,2]
[345357176,1734181837946,-153.0,0.00028967,2]
[345357177,1734181837954,-153.0,0.00028967,2]
[345357178,1734181837963,-153.0,0.00028967,2]
[345357179,1734181837972,-153.0,0.00028967,2]
[345357180,1734181837981,-153.0,0.00028967,2]
[345357181,1734181837990,-153.0,0.00028967,2]
[345357182,1734181837999,-153.0,0.00028967,2]
[345357183,1734181838008,-153.0,0.00028967,2]
[345357184,1734181838018,-153.0,0.00028967,2]
[345357185,1734181838027,-153.0,0.00028967,2]
[345357186,1734181838035,-153.0,0.00028967,2]
[345357187,1734181838045,-153.0,0.00028967,2]
[345357188,1734181838054,-153.0,0.00028967,2]
[345357190,1734181838063,-153.0,0.00028967,2]
[345357191,1734181838071,-153.0,0.00028967,2]
[345357192,1734181838081,-153.0,0.00028967,2]
[345357193,1734181838090,-153.0,0.00028967,2]
[345357194,1734181838100,-153.0,0.00028967,2]
[345357195,1734181838108,-153.0,0.00028967,2]
[345357197,1734181838118,-153.0,0.00028967,2]
[345357198,1734181838126,-153.0,0.00028967,2]
[345357199,1734181838136,-153.0,0.00028967,2]
[345357200,1734181838146,-153.0,0.00028967,2]
[345357201,1734181838157,-153.0,0.00028967,2]
[345357202,1734181838166,-153.0,0.00028967,2]
[345357203,1734181838175,-153.0,0.00028967,2]
[345357204,1734181838184,-153.0,0.00028967,2]
[345357205,1734181838193,-153.0,0.00028967,2]
[345357206,1734181838201,-153.0,0.00028967,2]
[345357207,1734181838211,-153.0,0.00028967,2]
[345357208,1734181838220,-153.0,0.00028967,2]
[345357209,1734181838230,-153.0,0.00028967,2]
[345357210,1734181838239,-153.0,0.00028967,2]
[345357211,1734181838248,-153.0,0.00028967,2]
[345357212,1734181838257,-153.0,0.00028967,2]
[345357213,1734181838268,-153.0,0.00028967,2]
[345357214,1734181838277,-153.0,0.00028967,2]
[345357215,1734181838287,-153.0,0.00028967,2]
[345357216,1734181838296,-153.0,0.00028967,2]
[345357217,1734181838306,-153.0,0.00028967,2]
[345357218,1734181838315,-153.0,0.00028967,2]